fUSD/lending_fUSD_20251122
["ID","MTS","AMOUNT","RATE_DAILY","PERIOD"]
[394656558,1763826645344,-337.27001179,0.00016755,2]
[394656559,1763826645353,-500.0,0.00016755,2]
[394656560,1763826645362,-500.0,0.00016755,2]
[394656561,1763826645371,-544.25160416,0.00016755,2]
[394656562,1763826645380,-583.01,0.00016755,2]
[394656563,1763826645389,-500.0,0.00016755,2]
[394656564,1763826645398,-2080.17592889,0.000168,2]
[394656565,1763826645407,-150.0,0.00016833,2]
[394656566,1763826645416,-2157.14243826,0.00016855,2]
[394656567,1763826645426,-300.0,0.00016882,2]
[394656568,1763826645436,-250.0,0.00016883,2]
[394656569,1763826645447,-300.0,0.00016883,2]
[394656570,1763826645457,-300.0,0.00016883,2]
[394656571,1763826645469,-300.0,0.00016883,2]
[394656572,1763826645490,-300.0,0.00016883,2]
[394656573,1763826645500,-403.96643049,0.00016895,2]
[394656574,1763826645509,-1100.01331595,0.00016895,2]
[394656575,1763826645518,-218.0,0.00016898,2]
[394656576,1763826645528,-420.0,0.00016898,2]
[394656577,1763826645538,-2236.95670848,0.0001691,2]
[394656578,1763826645547,-2319.72410669,0.00016965,2]
[394656579,1763826645557,-1680.0,0.00016984,2]
[394656580,1763826645566,-2000.0,0.00017,2]
[394656581,1763826645581,-250.0,0.00017,2]
[394656582,1763826645593,-1659.62115808,0.0001702,2]
[394656583,1763826645603,-500.0,0.00017029,2]
[394656584,1763826645614,-500.0,0.00017029,2]
[394656585,1763826645624,-583.01,0.00017029,2]
[394656586,1763826645634,-500.0,0.00017029,2]
[394656587,1763826645644,-403.96643049,0.00017063,2]
[394656588,1763826645652,-1100.01331595,0.00017063,2]
[394656589,1763826645663,-471.913,0.00017075,2]
[394656590,1763826645674,-575.0,0.00017226,2]
[394656591,1763826645684,-3434.0,0.00017226,2]
[394656592,1763826645692,-822.0,0.00017226,2]
[394656593,1763826645702,-1600.0,0.00017226,2]
[394656594,1763826645711,-1192.0,0.00017226,2]
[394656595,1763826645720,-915.184,0.00017226,2]
[394656596,1763826645730,-403.96643049,0.0001723,2]
[394656597,1763826645739,-1100.01331595,0.0001723,2]
[394656598,1763826645749,-500.0,0.00017303,2]
[394656599,1763826645758,-500.0,0.00017303,2]
[394656600,1763826645768,-583.01,0.00017303,2]
[394656601,1763826645777,-500.0,0.00017303,2]
[394656602,1763826645786,-403.96643049,0.00017398,2]
[394656603,1763826645796,-1100.01331595,0.00017398,2]
[394656604,1763826645805,-5157.0,0.0001745,2]
[394656605,1763826645814,-500.0,0.00017561,2]
[394656606,1763826645824,-5157.0,0.00017562,2]
[394656607,1763826645834,-403.96643049,0.00017565,2]
[394656608,1763826645843,-1100.01331595,0.00017565,2]
[394656609,1763826645852,-500.0,0.00017577,2]
[394656610,1763826645861,-500.0,0.00017577,2]
[394656611,1763826645872,-583.01,0.00017577,2]
[394656612,1763826645884,-500.0,0.00017577,2]
[394656613,1763826645893,-327.0,0.00017624,2]
[394656614,1763826645902,-541.03406688,0.00017708,2]
[394656615,1763826645912,-403.96643049,0.00017733,2]
[394656616,1763826645921,-1100.01331595,0.00017733,2]
[394656617,1763826645931,-1434.234822,0.00017762,2]
[394656618,1763826645942,-1121.0522932,0.00017764,2]
[394656619,1763826645952,-327.0,0.00017798,2]
[394656620,1763826645963,-327.0,0.00017828,2]
[394656621,1763826645973,-500.0,0.00017835,2]
[394656622,1763826645983,-500.0,0.00017851,2]
[394656623,1763826645993,-500.0,0.00017851,2]
[394656624,1763826646002,-583.01,0.00017851,2]
[394656625,1763826646013,-500.0,0.00017851,2]
[394656626,1763826646023,-200.0,0.00017856,2]
[394656627,1763826646032,-541.03406688,0.000179,2]
[394656628,1763826646042,-1456.2892,0.000179,2]
[394656629,1763826646051,-403.96643049,0.000179,2]
[394656630,1763826646060,-1100.01331595,0.000179,2]
[394656631,1763826646069,-1768.1724592,0.000179,2]
[394656632,1763826646079,-220.96140505,0.000179,2]
[394656633,1763826646088,-159.86537393,0.000179,2]
[394656634,1763826646098,-327.0,0.0001793,2]
[394656635,1763826646107,-200.0,0.00017999,2]
[394656636,1763826646117,-392.70379772,0.00017999,2]
[394656637,1763826646126,-500.0,0.00017999,2]
[394656638,1763826646135,-500.0,0.00017999,2]
[394656639,1763826646144,-703.35,0.00017999,2]
[394656640,1763826646154,-1900.0,0.00018,2]
[394656641,1763826646163,-600200.47794726,0.00018,2]
[394656653,1763826646294,-374768.5765417,0.00018,2]
[394656654,1763826646305,-4409.88582088,0.00018,2]
[394656655,1763826646317,-2600.26419122,0.00018,2]
[394656656,1763826646329,-2710.90330466,0.00018,2]
[394657210,1763826857723,153.87,0.00016,4]
[394657212,1763826962974,3001.65,0.00022,30]
[394657234,1763827831959,-440.866,0.00016053,2]
[394657235,1763827831968,-131.2018,0.00016199,2]
[394657236,1763827832125,-168.7982,0.00016199,2]
[394657237,1763827832135,-127.08888944,0.00016199,2]
[394657238,1763827832148,-330.91111056,0.00016199,2]
[394657239,1763827832157,-150.0,0.000162,2]
[394657240,1763827832167,-150.0,0.000162,2]
[394657241,1763827832178,-150.0,0.000162,2]
[394657242,1763827832188,-150.0,0.000162,2]
[394657243,1763827832197,-150.0,0.000162,2]
[394657244,1763827832207,-150.0,0.000162,2]
[394657245,1763827832218,-150.0,0.000162,2]
[394657246,1763827832226,-150.0,0.000162,2]
[394657249,1763827832237,-150.0,0.000162,2]
[394657250,1763827832247,-150.0,0.000162,2]
[394657251,1763827832256,-150.0,0.000162,2]
[394657252,1763827832265,-150.0,0.000162,2]
[394657254,1763827832275,-150.0,0.000162,2]
[394657256,1763827832283,-150.0,0.000162,2]
[394657257,1763827832293,-150.0,0.000162,2]
[394657258,1763827832302,-190.29455045,0.000162,2]
[394657259,1763827832312,-200.0,0.00016271,2]
[394657260,1763827832321,-2297.02832928,0.00016281,2]
[394657261,1763827832334,-562.249999,0.00016281,2]
[394657262,1763827832346,-13997.06557045,0.00016281,2]
[394657263,1763827832357,-724.37785151,0.00016281,2]
[394657264,1763827832368,-13593.96910185,0.00016281,2]
[394657265,1763827832379,-497.05484294,0.00016281,2]
[394657269,1763827838068,-1816.86476955,0.00016281,2]
[394657272,1763827840160,-292.9239875,0.00016281,2]
[394657278,1763827844122,-603.32475265,0.00016281,2]
[394657279,1763827844134,-410.30174383,0.00016281,2]
[394657280,1763827844146,-1757.59910477,0.00016281,2]
[394657281,1763827845424,-11975.51859195,0.00016281,2]
[394657285,1763827846025,-2200.23910581,0.00016281,2]
[394657286,1763827846184,-5882.93393453,0.00016281,2]
[394657287,1763827846337,-1900.10729965,0.00016281,2]
[394657300,1763828528651,364.91,0.00019178,30]
[394657304,1763828727231,150.0,0.00016017,120]
[394657319,1763828794937,421.07,0.00013699,2]
[394657409,1763829032198,-1000.0,0.000154,2]
[394657410,1763829032208,-661.27020031,0.000154,2]
[394657411,1763829032219,-481.3,0.000154,2]
[394657412,1763829032231,-1995.73979969,0.000154,2]
[394657413,1763829032245,-229.0,0.00015999,2]
[394657414,1763829032255,-7054.16859731,0.00016,2]
[394657415,1763829032267,-2766.59612907,0.00016,2]
[394657416,1763829032276,-150.0,0.00016017,2]
[394657417,1763829032287,-2751.0,0.00016058,2]
[394657418,1763829032296,-1632.1999,0.00016081,2]
[394657419,1763829032306,-4506.33859992,0.00016099,2]
[394657420,1763829032316,-211.82464251,0.00016099,2]
[394657421,1763829032326,-173.38944,0.0001612,2]
[394657422,1763829032335,-2149.47384289,0.00016137,2]
[394657423,1763829032344,-172.12513957,0.00016173,2]
[394657424,1763829032354,-500.0,0.00016173,2]
[394657425,1763829032363,-500.0,0.00016173,2]
[394657426,1763829032372,-637.70452293,0.00016173,2]
[394657427,1763829032382,-500.0,0.00016173,2]
[394657428,1763829032391,-299.75479801,0.00016174,2]
[394657429,1763829032401,-151.0,0.00016178,2]
[394657430,1763829032411,-347.0,0.0001618,2]
[394657431,1763829032420,-500.0,0.0001618,2]
[394657432,1763829032429,-500.0,0.0001618,2]
[394657433,1763829032439,-500.0,0.0001618,2]
[394657434,1763829032449,-373.70534005,0.0001618,2]
[394657435,1763829032459,-2776.22843039,0.00016181,2]
[394657436,1763829032467,-369.081,0.00016181,2]
[394657437,1763829032477,-470.8692,0.00016181,2]
[394657439,1763829032486,-235.0127,0.00016181,2]
[394657441,1763829032494,-28832.25203128,0.00016181,2]
[394657443,1763829032509,-568.28260926,0.00016181,2]
[394657445,1763829032521,-908.31160856,0.00016181,2]
[394657447,1763829032532,-535.362,0.00016181,2]
[394657450,1763829032543,-20101.18250461,0.00016181,2]
[394657452,1763829032554,-1059.77703254,0.00016181,2]
[394657453,1763829032566,-15323.86626999,0.00016181,2]
[394657454,1763829032577,-1116.33946482,0.00016181,2]
[394657462,1763829038113,-500.0,0.00016173,2]
[394657463,1763829038127,-159.90355273,0.00016173,2]
[394657464,1763829038136,-8241.29644727,0.00016181,2]
[394657465,1763829038179,-3126.6,0.00016181,2]
[394657466,1763829038252,-84605.68445586,0.00016181,2]
[394657467,1763829038319,-2290.94,0.00016181,2]
[394657468,1763829038331,-1370.716068,0.00016181,2]
[394657469,1763829038345,-855.5,0.00016181,2]
[394657470,1763829038356,-50992.84331723,0.00016181,2]
[394657471,1763829040259,-2732.7300008,0.00016181,2]
[394657472,1763829040271,-21177.2175,0.00016181,2]
[394657473,1763829040293,-44818.73396843,0.00016181,2]
[394657474,1763829040305,-321772.37199874,0.00016181,2]
[394657475,1763829040317,-149569.99272261,0.00016181,2]
[394657476,1763829040331,-13678.66,0.00016199,2]
[394657477,1763829040340,-250.0,0.00016199,2]
[394657478,1763829040351,-150.0,0.000162,2]
[394657479,1763829040361,-150.0,0.000162,2]
[394657480,1763829040370,-150.0,0.000162,2]
[394657481,1763829040380,-150.0,0.000162,2]
[394657482,1763829040392,-150.0,0.000162,2]
[394657483,1763829040403,-150.0,0.000162,2]
[394657484,1763829040417,-215.68209831,0.000162,2]
[394657485,1763829040428,-150.0,0.000162,2]
[394657486,1763829040438,-150.00000001,0.000162,2]
[394657487,1763829040448,-4206.55647263,0.000162,2]
[394657488,1763829040458,-200.0,0.00016237,2]
[394657489,1763829040468,-7223.8395,0.00016281,2]
[394657490,1763829040477,-1000.0,0.00016281,2]
[394657491,1763829040488,-999.0,0.00016311,3]
[394657492,1763829040499,-887.88,0.00016311,2]
[394657493,1763829040508,-174.53,0.00016317,2]
[394657494,1763829040519,-3175.19,0.00016348,2]
[394657495,1763829040529,-299.99,0.00016348,4]
[394657496,1763829040539,-231.3,0.00016368,2]
[394657497,1763829040549,-311.58,0.00016438,2]
[394657498,1763829040559,-500.0,0.00016438,2]
[394657499,1763829040569,-500.0,0.00016438,2]
[394657500,1763829040578,-500.0,0.00016438,2]
[394657502,1763829040587,-500.0,0.00016438,2]
[394657504,1763829040597,-500.0,0.00016438,2]
[394657505,1763829040610,-500.0,0.00016438,2]
[394657506,1763829040619,-500.0,0.00016438,2]
[394657508,1763829040629,-500.0,0.00016438,2]
[394657510,1763829040638,-502.78,0.00016438,2]
[394657511,1763829040648,-500.0,0.00016438,2]
[394657512,1763829040658,-1431.15,0.00016438,2]
[394657513,1763829040668,-2149.47384287,0.00016522,2]
[394657514,1763829040678,-327.0,0.00016643,2]
[394657515,1763829040688,-327.0,0.00016656,2]
[394657516,1763829040698,-311.58,0.00016712,2]
[394657517,1763829040707,-500.0,0.00016712,2]
[394657518,1763829040716,-500.0,0.00016712,2]
[394657519,1763829040727,-327.0,0.00016718,2]
[394657520,1763829040738,-150.0,0.00016731,2]
[394657521,1763829040747,-162.19,0.00016733,2]
[394657522,1763829040757,-327.0,0.00016738,2]
[394657523,1763829040767,-327.0,0.00016743,2]
[394657524,1763829040776,-327.0,0.0001678,2]
[394657525,1763829040786,-226.58123753,0.0001683,2]
[394657526,1763829040796,-327.0,0.00016836,2]
[394657527,1763829040811,-327.0,0.00016842,2]
[394657528,1763829040820,-150.0,0.00016856,2]
[394657529,1763829040831,-327.0,0.00016874,2]
[394657530,1763829040840,-2149.47384287,0.00016906,2]
[394657531,1763829040850,-184.70679176,0.00016906,2]
[394657532,1763829040859,-1178.78163948,0.00016906,2]
[394657533,1763829040868,-300.0,0.0001694,2]
[394657534,1763829040878,-300.0,0.0001694,2]
[394657535,1763829040887,-300.0,0.0001694,2]
[394657536,1763829040897,-215.66716771,0.0001694,2]
[394657537,1763829040907,-162.39161577,0.00016973,2]
[394657538,1763829040919,-163.44255862,0.00016973,2]
[394657539,1763829040929,-228.77234087,0.00016973,2]
[394657540,1763829040939,-500.0,0.00016973,2]
[394657541,1763829040950,-500.0,0.00016973,2]
[394657542,1763829040959,-500.49832064,0.00016973,2]
[394657543,1763829040969,-500.0,0.00016973,2]
[394657544,1763829040979,-501.18613092,0.00016973,2]
[394657545,1763829040989,-1600.0,0.00016978,2]
[394657546,1763829041001,-311.58,0.00016986,2]
[394657547,1763829041012,-500.0,0.00016986,2]
[394657548,1763829041023,-290.08,0.00016986,2]
[394657549,1763829041033,-190.70802335,0.0001699,2]
[394657550,1763829041043,-1030.41835166,0.00017,2]
[394657551,1763829041052,-846170.33734236,0.00017,2]
[394657552,1763829041065,-983.9910225,0.00017,2]
[394657553,1763829041076,-996.30331266,0.00017,2]
[394657554,1763829041088,-832.53465241,0.00017,2]
[394657555,1763829041099,-682.2059985,0.00017,2]
[394657556,1763829041110,-386.49005528,0.00017,2]
[394657557,1763829041121,-53852.71226335,0.00017,2]
[394657558,1763829041132,-1800.0,0.00017,2]
[394657559,1763829041144,-5911.7256,0.00017,2]
[394657560,1763829041155,-506.77396754,0.00017,2]
[394657561,1763829041166,-2357.1678906,0.00017,2]
[394657592,1763829043834,-425.8310154,0.00016099,2]
[394657594,1763829043844,-550.0,0.0001618,2]
[394657596,1763829043854,-24.1689846,0.00016973,2]
[394657597,1763829043866,-475.8310154,0.00016973,2]
[394657598,1763829043887,-500.0,0.00016973,2]
[394657599,1763829043897,-38145.44322358,0.00017,2]
[394657600,1763829044504,-5911.7256,0.00017,2]
[394657616,1763829046794,-437.63500005,0.00017,2]
[394657715,1763829470444,700.0,0.00022,30]
[394658064,1763830231483,-150.0,0.00015288,2]
[394658066,1763830231493,-150.0,0.00015288,2]
[394658068,1763830231502,-150.0,0.00015288,2]
[394658070,1763830231511,-150.0,0.00015288,2]
[394658072,1763830231520,-150.0,0.00015288,2]
[394658074,1763830231529,-442.8169,0.000153,2]
[394658076,1763830231539,-130.24308382,0.00015676,2]
[394658079,1763830231556,-888.89,0.00015676,2]
[394658081,1763830231568,-580.86691618,0.00015676,2]
[394658083,1763830231578,-182.01310552,0.0001588,2]
[394658085,1763830231587,-6972.05300434,0.00015882,2]
[394658087,1763830231596,-190.64217825,0.00015972,2]
[394658089,1763830231606,-740.19068473,0.00015972,2]
[394658091,1763830231620,-207.73,0.0001598,2]
[394658093,1763830231629,-500.0,0.0001598,2]
[394658095,1763830231638,-179.25954036,0.0001598,2]
[394658097,1763830231647,-250.02703424,0.0001598,2]
[394658099,1763830231657,-160.22995629,0.0001598,2]
[394658100,1763830231667,-500.0,0.0001598,2]
[394658101,1763830231676,-500.0,0.0001598,2]
[394658102,1763830231687,-500.0,0.0001598,2]
[394658103,1763830231695,-199.65247974,0.0001598,2]
[394658110,1763830237358,-300.34752026,0.0001598,2]
[394658111,1763830237368,-500.0,0.0001598,2]
[394658112,1763830237377,-500.0,0.0001598,2]
[394658113,1763830237386,-500.0,0.0001598,2]
[394658114,1763830237395,-500.0,0.0001598,2]
[394658115,1763830237405,-451.13714698,0.0001598,2]
[394658116,1763830237465,-48.86285302,0.0001598,2]
[394658117,1763830237475,-500.0,0.0001598,2]
[394658118,1763830237485,-500.0,0.0001598,2]
[394658119,1763830237494,-212.41648815,0.0001598,2]
[394658120,1763830237506,-287.58351185,0.0001598,2]
[394658121,1763830237515,-500.0,0.0001598,2]
[394658122,1763830237524,-98.90648815,0.0001598,2]
[394658123,1763830237536,-401.09351185,0.0001598,2]
[394658124,1763830237546,-500.0,0.0001598,2]
[394658125,1763830237555,-500.0,0.0001598,2]
[394658126,1763830237564,-418.85873711,0.0001598,2]
[394658127,1763830237575,-81.14126289,0.0001598,2]
[394658128,1763830237584,-416.25182211,0.0001598,2]
[394658274,1763830239410,-83.74817789,0.0001598,2]
[394658276,1763830239420,-500.0,0.0001598,2]
[394658278,1763830239429,-500.0,0.0001598,2]
[394658280,1763830239439,-219.95285489,0.0001598,2]
[394658283,1763830239450,-280.04714511,0.0001598,2]
[394658285,1763830239459,-500.0,0.0001598,2]
[394658287,1763830239468,-500.0,0.0001598,2]
[394658289,1763830239478,-500.0,0.0001598,2]
[394658291,1763830239487,-500.0,0.0001598,2]
[394658293,1763830239496,-500.0,0.0001598,2]
[394658295,1763830239505,-434.21636696,0.0001598,2]
[394658297,1763830239514,-500.0,0.0001598,2]
[394658299,1763830239523,-309.75648773,0.0001598,2]
[394658301,1763830239535,-190.24351227,0.0001598,2]
[394658303,1763830239544,-244.2542022,0.0001598,2]
[394658305,1763830239554,-244.2542022,0.0001598,2]
[394658307,1763830239563,-500.0,0.0001598,2]
[394658309,1763830239572,-500.0,0.0001598,2]
[394658311,1763830239582,-244.2542022,0.0001598,2]
[394658313,1763830239590,-199.97248113,0.0001598,2]
[394658315,1763830239602,-262.22054615,0.0001598,2]
[394658317,1763830239618,-37.80697272,0.0001598,2]
[394658319,1763830239628,-244.2542022,0.0001598,2]
[394658322,1763830239637,-167.23382503,0.00015981,2]
[394658324,1763830239648,-487.5399935,0.00015981,2]
[394658326,1763830239665,-4899.99436564,0.00015981,2]
[394658328,1763830239675,-54.76999703,0.00015981,2]
[394658331,1763830239688,-152.64371061,0.00015981,2]
[394658333,1763830239698,-1000.0,0.00015981,2]
[394658335,1763830239707,-343.13807996,0.00015981,2]
[394658337,1763830239718,-614.12919889,0.00015981,2]
[394658339,1763830239729,-6419.14466175,0.00015981,2]
[394658341,1763830239740,-27790.44458395,0.00015981,2]
[394658641,1763830242944,-490.32958442,0.000159,2]
[394658642,1763830242953,-1309.59290569,0.00015981,2]
[394658643,1763830242965,-21077.61806963,0.00015981,2]
[394658644,1763830242975,-580.0,0.00015981,2]
[394658645,1763830242998,-1420.1956609,0.00015981,2]
[394658646,1763830243009,-263.93476723,0.00015981,2]
[394658647,1763830243019,-9289.5,0.00015981,2]
[394658648,1763830243679,-879.0997796,0.00015981,2]
[394658649,1763830243733,-492.91954602,0.00015981,2]
[394658650,1763830243744,-2221.173,0.00015981,2]
[394658656,1763830245417,-622.2216,0.00015981,2]
[394658657,1763830245580,-1479.52219401,0.00015981,2]
[394658658,1763830245725,-103427.80030159,0.00015981,2]
[394658659,1763830245739,-581769.56565078,0.00015981,2]
[394658660,1763830245749,-550.0,0.00016072,2]
[394658661,1763830245759,-161.27020031,0.00016073,2]
[394658662,1763830245768,-500.0,0.00016073,2]
[394658663,1763830245778,-500.0,0.00016073,2]
[394658664,1763830245788,-506.60742957,0.00016073,2]
[394658665,1763830245798,-500.0,0.00016073,2]
[394658666,1763830245807,-855.745,0.0001608,2]
[394658667,1763830245816,-500.0,0.0001608,2]
[394658668,1763830245825,-500.0,0.0001608,2]
[394658669,1763830245838,-500.0,0.0001608,2]
[394658670,1763830245847,-500.0,0.0001608,2]
[394658671,1763830245857,-500.0,0.0001608,2]
[394658672,1763830245866,-500.0,0.0001608,2]
[394658673,1763830245876,-500.0,0.0001608,2]
[394658674,1763830245885,-372.59803635,0.0001608,2]
[394658675,1763830245895,-171.346,0.0001608,2]
[394658676,1763830245904,-26693.791,0.00016081,2]
[394658677,1763830245913,-5329.4968,0.00016081,2]
[394658678,1763830245923,-150.99,0.00016081,2]
[394658679,1763830245932,-362.02646144,0.0001618,2]
[394658680,1763830245941,-1207.96,0.0001618,2]
[394658681,1763830245951,-9999.99,0.0001618,2]
[394658682,1763830245960,-5554.76818416,0.00016194,2]
[394658683,1763830245969,-207.73,0.00016254,2]
[394658684,1763830245978,-5554.76818416,0.00016407,2]
[394658685,1763830245987,-500.0,0.00016438,2]
[394658686,1763830245996,-500.0,0.00016438,2]
[394658687,1763830246005,-190.68550382,0.00016438,2]
[394658688,1763830246014,-500.0,0.00016438,2]
[394658689,1763830246023,-500.0,0.00016438,2]
[394658690,1763830246036,-656.69,0.00016438,2]
[394658691,1763830246046,-500.0,0.00016438,2]
[394658692,1763830246055,-500.0,0.00016438,2]
[394658693,1763830246064,-500.0,0.00016438,2]
[394658694,1763830246074,-500.0,0.00016438,2]
[394658695,1763830246083,-500.0,0.00016438,2]
[394658696,1763830246092,-500.0,0.00016438,2]
[394658697,1763830246102,-500.0,0.00016438,2]
[394658698,1763830246112,-500.0,0.00016438,2]
[394658699,1763830246122,-500.0,0.00016438,2]
[394658700,1763830246131,-500.0,0.00016438,2]
[394658701,1763830246141,-500.0,0.00016438,2]
[394658702,1763830246150,-500.0,0.00016438,2]
[394658703,1763830246159,-500.0,0.00016438,2]
[394658704,1763830246169,-500.0,0.00016438,2]
[394658705,1763830246178,-500.0,0.00016438,2]
[394658706,1763830246187,-500.0,0.00016438,2]
[394658707,1763830246197,-500.0,0.00016438,2]
[394658708,1763830246206,-643.98942684,0.00016438,2]
[394658709,1763830246215,-500.0,0.00016438,2]
[394658710,1763830246228,-500.0,0.00016438,2]
[394658711,1763830246238,-500.0,0.00016438,2]
[394658712,1763830246247,-500.0,0.00016438,2]
[394658713,1763830246257,-500.0,0.00016438,2]
[394658714,1763830246266,-500.0,0.00016438,2]
[394658715,1763830246275,-500.0,0.00016438,2]
[394658716,1763830246284,-500.0,0.00016438,2]
[394658717,1763830246294,-500.0,0.00016438,2]
[394658718,1763830246303,-500.0,0.00016438,2]
[394658719,1763830246313,-674.04,0.00016438,2]
[394658720,1763830246322,-500.0,0.00016438,2]
[394658721,1763830246332,-500.0,0.00016438,2]
[394658722,1763830246341,-500.0,0.00016438,2]
[394658723,1763830246351,-500.0,0.00016438,2]
[394658724,1763830246360,-500.0,0.00016438,2]
[394658725,1763830246370,-278.07344109,0.00016438,2]
[394658726,1763830246379,-1192.62,0.00016438,2]
[394658727,1763830246388,-1460.01,0.00016475,2]
[394658728,1763830246398,-207.74,0.00016528,2]
[394658729,1763830246407,-5554.76818416,0.00016621,2]
[394658730,1763830246419,-500.0,0.00016712,2]
[394658731,1763830246429,-656.69,0.00016712,2]
[394658732,1763830246439,-500.0,0.00016712,2]
[394658733,1763830246449,-500.0,0.00016712,2]
[394658734,1763830246458,-500.0,0.00016712,2]
[394658735,1763830246467,-674.04,0.00016712,2]
[394658736,1763830246476,-500.0,0.00016712,2]
[394658737,1763830246486,-500.0,0.00016712,2]
[394658738,1763830246495,-241.08412977,0.00016712,2]
[394658739,1763830246504,-500.0,0.00016712,2]
[394658740,1763830246514,-300.0,0.00016816,2]
[394658741,1763830246524,-250.0,0.00016816,2]
[394658742,1763830246533,-300.0,0.00016816,2]
[394658743,1763830246542,-5554.76818416,0.00016834,2]
[394658744,1763830246557,-693.3919763,0.00016862,2]
[394658745,1763830246566,-578.20924308,0.00016862,2]
[394658746,1763830246575,-167.90102495,0.000169,2]
[394658747,1763830246584,-184.70679176,0.000169,2]
[394658748,1763830246595,-719.04747942,0.00016917,2]
[394658749,1763830246605,-13465.89948687,0.00016955,2]
[394658750,1763830246620,-1731.98560568,0.00016962,2]
[394658751,1763830246630,-745.65223616,0.00016972,2]
[394658752,1763830246640,-500.0,0.00016973,2]
[394658753,1763830246650,-503.55891604,0.00016973,2]
[394658754,1763830246661,-500.0,0.00016973,2]
[394658755,1763830246671,-384.91669625,0.00016973,2]
[394658756,1763830246680,-367.43650363,0.00016973,2]
[394658757,1763830246690,-408.37583204,0.00016973,2]
[394658758,1763830246699,-500.0,0.00016973,2]
[394658759,1763830246709,-500.0,0.00016973,2]
[394658760,1763830246718,-155.34255425,0.00016973,2]
[394658761,1763830246728,-500.0,0.00016986,2]
[394658762,1763830246737,-656.69,0.00016986,2]
[394658763,1763830246747,-184.3357542,0.00016986,2]
[394658764,1763830246756,-500.0,0.00016986,2]
[394658765,1763830246765,-500.0,0.00016986,2]
[394658766,1763830246775,-674.04,0.00016986,2]
[394658767,1763830246784,-500.0,0.00016986,2]
[394658768,1763830246793,-500.0,0.00016986,2]
[394658769,1763830246802,-500.0,0.00016986,2]
[394658770,1763830246817,-150.0,0.00016986,2]
[394658771,1763830246831,-150.0,0.00016986,2]
[394658772,1763830246843,-56424.9892446,0.00016998,2]
[394658773,1763830246852,-689.2130458,0.00016998,2]
[394658774,1763830246861,-2665.0,0.00017,2]
[394658775,1763830246871,-70512.24875186,0.00017,2]
[394658776,1763830246886,-427.34735395,0.00017,2]
[394658777,1763830246897,-2973.848593,0.00017,2]
[394658778,1763830246909,-2747.06,0.00017,2]
[394658835,1763831431603,-704.00197471,0.00014951,2]
[394658836,1763831431615,-2046.99802529,0.00014951,2]
[394658837,1763831431625,-2020.48,0.00015088,2]
[394658838,1763831431635,-166.66,0.0001519,2]
[394658839,1763831431644,-1200.0,0.00015242,2]
[394658840,1763831431653,-7771.33,0.00015243,2]
[394658841,1763831431662,-300.0,0.00015287,2]
[394658842,1763831431671,-150.0,0.00015288,2]
[394658843,1763831431680,-150.0,0.00015288,2]
[394658844,1763831431689,-150.0,0.00015376,2]
[394658845,1763831431698,-166.66,0.0001551,2]
[394658846,1763831431708,-300.0,0.00015513,2]
[394658847,1763831431717,-999.0,0.00015514,3]
[394658848,1763831431727,-250.0,0.0001557,2]
[394658849,1763831431736,-167.12,0.00015728,2]
[394658850,1763831431745,-524.0,0.00015762,2]
[394658851,1763831431754,-15996.91,0.00015763,2]
[394658852,1763831431763,-261.0829745,0.00015769,2]
[394658853,1763831431774,-159.11199294,0.00015781,2]
[394658854,1763831431783,-166.66,0.0001583,2]